bitfinex-derivatives/quotes_SOLF0:USTF0_20260123
["timestamp","ask_amount","ask_price","bid_price","bid_amount"]
[1769151442298,3.41631616,127.82,127.76,10.21673461]
[1769151442792,3.36032828,127.81,127.74,12.31133599]
[1769151443395,3.36032828,127.81,127.75,3.16303461]
[1769151443904,0.05559643,127.79,127.75,3.16303461]
[1769151444493,0.05559643,127.79,127.75,5.25653599]
[1769151444805,3.41592471,127.79,127.71,3.16303461]
[1769151444994,3.36032828,127.78,127.72,2.09350138]
[1769151445600,0.05490291,127.76,127.72,5.25653599]
[1769151451902,3.36032828,127.78,127.73,2.09350138]
[1769151452099,3.36032828,127.78,127.73,2.14779646]
[1769151454507,3.36032828,127.78,127.74,2.09350138]
[1769151457330,3.2362515,127.81,127.74,5.55569907]
[1769151457514,3.2362515,127.81,127.75,2.09350138]
[1769151458422,3.2362515,127.81,127.77,0.05089548]
[1769151459722,0.05490172,127.8,127.77,2.14352737]
[1769151460930,0.05490172,127.8,127.77,0.05089548]
[1769151461437,3.2362515,127.72,127.61,109.8551]
[1769151461620,3.2362515,127.72,127.6,109.8646]
[1769151461923,3.2362515,127.71,127.64,2.09263189]
[1769151462614,0.05413989,127.69,127.64,2.09263189]
[1769151463125,0.05413989,127.69,127.66,2.09263189]
[1769151463527,3.2362515,127.71,127.66,2.09263189]
[1769151463923,0.05796197,127.69,127.65,3.46219769]
[1769151464120,0.05796197,127.69,127.65,5.55482958]
[1769151464320,3.2362515,127.74,127.69,2.09263189]
[1769151465617,3.2362515,127.74,127.7,0.0571951]
[1769151466430,3.2362515,127.7,127.62,3.46219769]
[1769151466621,109.7602,127.73,127.62,3.46219769]
[1769151466622,3.2362515,127.68,127.62,3.46219769]
[1769151467220,3.2362515,127.68,127.62,5.55482958]
[1769151467730,0.05833655,127.66,127.62,5.55482958]
[1769151467923,0.05833655,127.66,127.64,0.05705192]
[1769151468734,3.29458805,127.66,127.58,3.46219769]
[1769151468919,3.29458805,127.66,127.5,3.46219769]
[1769151468920,3.2362515,127.61,127.5,3.46219769]
[1769151469119,3.2362515,127.59,127.5,3.46219769]
[1769151469325,2.09263189,127.64,127.55,2.09263189]
[1769151469624,2.09263189,127.65,127.56,3.46219769]
[1769151469829,2.09263189,127.63,127.56,3.46219769]
[1769151470026,2.09263189,127.66,127.57,5.55482958]
[1769151470226,0.05264262,127.62,127.57,3.46219769]
[1769151471329,0.05264262,127.62,127.53,109.9231]
[1769151471330,0.05264262,127.62,127.54,3.46219769]
[1769151471833,3.2362515,127.67,127.56,3.46219769]
[1769151472029,3.2362515,127.66,127.56,3.46219769]
[1769151472533,3.2362515,127.66,127.52,109.9314]
[1769151472534,3.2362515,127.53,127.4,5.15458046]
[1769151472737,113.2609515,127.42,127.35,8.95253179]
[1769151473026,1.36,127.4,127.35,9.05161659]
[1769151473233,3.2362515,127.45,127.35,9.05161659]
[1769151473234,3.2362515,127.45,127.38,5.15458046]
[1769151473634,3.2362515,127.49,127.38,5.15458046]
[1769151473818,3.2362515,127.49,127.41,5.15458046]
[1769151474222,3.2362515,127.49,127.39,301.37458046]
[1769151474423,3.2362515,127.49,127.4,3.46219769]
[1769151474834,3.2362515,127.49,127.43,0.05164043]
[1769151476636,3.2362515,127.52,127.43,0.05164043]
[1769151476936,3.2362515,127.52,127.46,5.15458046]
[1769151477324,3.2362515,127.55,127.48,0.05971527]
[1769151477638,109.8906,127.58,127.48,0.05971527]
[1769151477639,3.2362515,127.58,127.49,8.61677815]
[1769151477836,3.2362515,127.58,127.52,5.15458046]
[1769151478937,3.2362515,127.47,127.35,3.89703613]
[1769151479232,3.2362515,127.4,127.35,7.325e-05]
[1769151479429,439.9601,127.46,127.35,7.325e-05]
[1769151479430,3.2362515,127.44,127.35,7.325e-05]
[1769151479626,109.9117,127.55,127.43,8.61677815]
[1769151479832,109.8953,127.57,127.49,5.15458046]
[1769151480132,109.9207,127.54,127.46,5.15458046]
[1769151480636,109.9375,127.52,127.46,5.15458046]
[1769151480836,109.9064,127.56,127.46,5.15458046]
[1769151481030,109.9291,127.53,127.46,5.15458046]
[1769151481431,109.9375,127.52,127.46,5.15458046]
[1769151481631,109.9291,127.53,127.46,5.15458046]
[1769151481826,109.9402,127.52,127.46,5.15458046]
[1769151482140,109.9402,127.52,127.48,0.05191727]
[1769151482141,113.31472106,127.52,127.48,0.05191727]
[1769151483038,120.38192106,127.52,127.48,0.05191727]
[1769151483233,113.33822106,127.49,127.39,8.31981043]
[1769151483635,10.44342106,127.49,127.39,8.31981043]
[1769151484533,113.41552106,127.4,127.35,7.325e-05]
[1769151484734,0.06035009,127.45,127.29,5.15458046]
[1769151484735,110.0772,127.36,127.29,5.15458046]
[1769151484930,113.44222106,127.37,127.26,8.31981043]
[1769151485132,3.37452106,127.37,127.26,8.31981043]
[1769151485329,0.0594028,127.34,127.27,3.18046645]
[1769151486942,110.0584,127.38,127.29,3.23260389]
[1769151487332,110.0584,127.38,127.29,3.18046645]
[1769151487944,110.054,127.39,127.29,3.18046645]
[1769151488346,110.054,127.39,127.33,0.0501704]
[1769151488543,10.38123004,127.4,127.33,0.0501704]
[1769151488735,115.16428046,127.44,127.33,3.23063685]
[1769151488736,117.0929,127.43,127.33,3.23063685]
[1769151489143,117.0929,127.43,127.33,3.18046645]
[1769151489339,7.0731,127.42,127.33,299.88046645]
[1769151489539,7.0731,127.42,127.37,0.05223928]
[1769151490142,110.0203,127.43,127.37,0.05223928]
[1769151490645,113.31653004,127.44,127.37,0.05223928]
[1769151491854,113.28533004,127.47,127.37,3.23270573]
[1769151492242,113.28533004,127.47,127.37,3.18046645]
[1769151492646,3.30683004,127.47,127.41,0.05990057]
[1769151492842,7.0697,127.48,127.41,0.05990057]
[1769151493440,0.06014993,127.46,127.41,0.05990057]
[1769151495745,0.06014993,127.46,127.41,296.81990057]
[1769151496146,3.30683004,127.5,127.41,296.81990057]
[1769151496555,3.30683004,127.5,127.41,296.76]
[1769151497455,3.30683004,127.5,127.44,0.05478838]
[1769151498949,3.30683004,127.53,127.44,0.05478838]
[1769151499255,3.30683004,127.55,127.45,296.78]
[1769151499653,3.30683004,127.55,127.49,0.05733915]
[1769151505857,3.30683004,127.55,127.43,69.0718]
[1769151505858,3.30683004,127.45,127.35,3.18046645]
[1769151506064,110.022,127.42,127.32,3.18046645]
[1769151506257,113.33723004,127.41,127.32,3.18046645]
[1769151506561,3.30683004,127.41,127.32,3.18046645]
[1769151506753,3.30683004,127.44,127.32,3.18046645]
[1769151507162,3.30683004,127.44,127.37,0.0566661]
[1769151508062,7.0722,127.43,127.37,0.0566661]
[1769151510966,3.30683004,127.44,127.37,0.0566661]
[1769151511168,7.0713,127.45,127.37,0.0566661]
[1769151511459,113.29223004,127.47,127.37,3.23713255]
[1769151511460,120.36243004,127.47,127.37,3.23713255]
[1769151511654,110.0042,127.44,127.34,8.38468516]
[1769151511861,3.35382326,127.44,127.41,0.05045566]
[1769151512263,3.35382326,127.44,127.35,299.9901047]
[1769151512652,3.35382326,127.44,127.41,0.05037873]
[1769151512857,3.35382326,127.44,127.35,299.9901047]
[1769151513062,10.42592326,127.44,127.35,299.9901047]
[1769151513263,10.42592326,127.44,127.41,0.0503777]
[1769151513658,10.42592326,127.44,127.35,299.9901047]
[1769151513659,10.42592326,127.44,127.35,296.76]
[1769151513966,10.42592326,127.44,127.41,0.05607211]
[1769151514362,10.42592326,127.44,127.36,3.2301047]
[1769151514668,3.35382326,127.51,127.41,0.05700255]
[1769151514858,113.30602326,127.5,127.41,3.28710725]
[1769151515055,3.35382326,127.5,127.41,300.0301047]
[1769151515467,3.35382326,127.5,127.44,0.05899429]
[1769151515668,0.0560314,127.47,127.44,0.05899429]
[1769151516264,0.0560314,127.47,127.36,110.0703]
[1769151516265,3.35382326,127.36,127.24,110.1756]
[1769151516568,113.40962326,127.38,127.24,6.52151095]
[1769151516865,113.40962326,127.38,127.24,303.32151095]
[1769151517067,117.1407,127.37,127.25,7.0821]
[1769151517263,7.0759,127.37,127.25,7.0821]
[1769151517563,0.05103108,127.32,127.25,7.0821]
[1769151518168,3.35382326,127.38,127.26,3.2301047]
[1769151518656,3.35382326,127.38,127.28,3.2301047]
[1769151524273,3.35382326,127.38,127.29,300.1301047]
[1769151524775,3.35382326,127.38,127.31,0.04957682]
[1769151525574,3.35382326,127.37,127.25,3.2301047]
[1769151525774,3.35382326,127.3,127.18,3.2301047]
[1769151525964,3.35382326,127.27,127.16,3.2301047]
[1769151526170,3.35382326,127.27,127.17,3.2301047]
[1769151526574,3.35382326,127.31,127.17,3.2301047]
[1769151527172,3.35382326,127.31,127.19,3.2301047]
[1769151527767,3.35382326,127.31,127.21,3.2301047]
[1769151528273,3.35382326,127.31,127.22,3.2301047]
[1769151528676,3.35382326,127.31,127.25,0.05440011]
[1769151529580,3.35382326,127.34,127.25,3.28450481]
[1769151529980,3.35382326,127.34,127.25,3.2301047]
[1769151530476,3.35382326,127.37,127.25,3.2301047]
[1769151530667,3.35382326,127.37,127.28,3.28713432]
[1769151531067,3.35382326,127.37,127.28,3.2301047]
[1769151531481,3.35382326,127.37,127.31,0.0554741]
[1769151534776,3.35382326,127.41,127.31,0.0554741]
[1769151535285,3.35382326,127.41,127.28,3.2301047]
[1769151535481,3.35382326,127.41,127.3,8.40530513]
[1769151535676,3.35382326,127.41,127.35,0.054476]
[1769151539983,3.35382326,127.41,127.35,7.130676]
[1769151540288,5.17520043,127.48,127.37,110.0642]
[1769151540477,109.913,127.55,127.38,110.0541]
[1769151540682,5.17520043,127.53,127.4,110.0353]
[1769151540876,12.24190043,127.53,127.4,110.0353]
[1769151541071,5.17520043,127.53,127.44,0.05702765]
[1769151541584,5.17520043,127.53,127.41,110.0268]
[1769151541784,5.17520043,127.53,127.47,0.04981082]
[1769151541984,0.05499331,127.5,127.41,110.0268]
[1769151542280,4.13197913,127.5,127.41,110.0268]
[1769151542484,4.07698582,127.5,127.42,117.0927]
[1769151543282,0.05182803,127.47,127.42,117.0927]
[1769151543580,0.05182803,127.47,127.42,7.0722]
[1769151551687,4.61941201,127.47,127.39,10.3041047]
[1769151552076,4.56758398,127.47,127.39,10.3041047]
[1769151552281,4.56758398,127.47,127.4,7.0735]
[1769151552482,0.05507313,127.44,127.4,7.0735]
[1769151552678,4.56758398,127.47,127.42,0.05233889]
[1769151567105,4.56758398,127.47,127.42,7.12483889]
[1769151570005,12.24210043,127.53,127.43,7.072]
[1769151571004,0.0558008,127.49,127.44,7.0713]
[1769151571706,0.0558008,127.49,127.45,7.0709]
[1769151578107,5.13618307,127.49,127.43,11.39276177]
[1769151578315,5.13618307,127.49,127.4,5.42628149]
[1769151578718,5.08038227,127.49,127.4,5.42628149]
[1769151579717,0.05736367,127.46,127.4,5.42628149]
[1769151580016,0.05736367,127.46,127.41,7.0729]
[1769151586817,0.05736367,127.46,127.41,12.49918149]
[1769151587924,0.05736367,127.46,127.42,7.0726]
[1769151588826,0.05736367,127.46,127.42,9.17658995]
[1769151590228,2.10398995,127.49,127.42,8.3481439]
[1769151591329,2.10398995,127.49,127.44,7.0715]
[1769151591533,2.10398995,127.49,127.44,7.12755614]
[1769151592937,0.88083365,127.5,127.45,7.0708]
[1769151594526,0.88083365,127.5,127.44,2.16004609]
[1769151594731,0.88083365,127.5,127.46,7.0704]
[1769151595440,0.88083365,127.5,127.47,0.04966182]
[1769151597933,1.26532432,127.52,127.47,7.11946182]
[1769151598132,7.61705175,127.52,127.47,7.11946182]
[1769151598533,1.33953573,127.51,127.47,7.11946182]
[1769151599246,6.35172743,127.52,127.48,7.0692]
[1769151599546,2.10398995,127.54,127.48,7.0692]
[1769151599743,6.15742271,127.53,127.48,7.0692]
[1769151599937,2.10398995,127.55,127.48,7.0692]
[1769151600243,6.15830243,127.54,127.49,7.12250673]
[1769151600546,2.10398995,127.55,127.49,7.12250673]
[1769151600747,6.32367642,127.55,127.49,0.05400673]
[1769151600945,6.32367642,127.55,127.49,6.96791068]
[1769151601143,6.32367642,127.54,127.49,6.96791068]
[1769151601349,0.21250599,127.56,127.49,6.96791068]
[1769151601536,6.15678654,127.55,127.49,9.0178939]
[1769151601738,6.15678654,127.55,127.5,7.0681]
[1769151601937,6.15678654,127.55,127.51,0.0597305]
[1769151602246,0.21250599,127.56,127.51,0.0597305]
[1769151602634,0.21250599,127.56,127.51,7.1272305]
[1769151602837,5.99e-06,127.56,127.51,110.0007305]
[1769151603032,6.31954438,127.58,127.52,2.10398995]
[1769151603232,2.10398995,127.59,127.52,2.10398995]
[1769151603439,8.41866827,127.61,127.53,109.9248]
[1769151603648,6.31467832,127.6,127.52,9.1241439]
[1769151603845,2.10398995,127.6,127.54,0.05195363]
[1769151604452,23.36318399,127.61,127.54,0.05195363]
[1769151604641,7.17060394,127.66,127.54,112.07064358]
[1769151604952,2.39070921,127.64,127.57,7.0642]
[1769151605144,8.41405465,127.64,127.57,7.0642]
[1769151605445,2.10398995,127.64,127.59,0.05874522]
[1769151606645,2.10398995,127.62,127.59,0.05874522]
[1769151607048,0.05648431,127.63,127.59,0.05874522]
[1769151607249,2.16047426,127.63,127.59,0.05874522]
[1769151608245,0.05648431,127.63,127.59,0.05874522]
[1769151608439,2.10398995,127.61,127.54,2.10398995]
[1769151609749,2.10398995,127.62,127.54,2.10398995]
[1769151610750,2.10398995,127.61,127.53,9.1241439]
[1769151611044,2.10398995,127.6,127.53,9.1241439]
[1769151611251,2.10398995,127.59,127.52,2.10398995]
[1769151613644,0.05047055,127.57,127.52,2.10398995]
[1769151614954,0.05047055,127.57,127.52,9.1241439]
[1769151615346,0.05047055,127.57,127.53,2.10398995]
[1769151615949,0.05047055,127.57,127.52,9.1241439]
[1769151620958,0.05047055,127.57,127.53,2.10398995]
[1769151622955,0.05047055,127.57,127.53,9.1241439]
[1769151623258,7.063,127.6,127.56,9.09890862]
[1769151623649,7.063,127.6,127.56,8.62e-06]
[1769151624355,7.063,127.6,127.57,0.0581689]
[1769151626363,7.063,127.6,127.56,8.62e-06]
[1769151626556,7.11773947,127.6,127.56,8.62e-06]
[1769151630759,0.05473947,127.6,127.56,2.10399857]
[1769151630962,0.05473947,127.6,127.57,2.10398995]
[1769151632066,0.05473947,127.6,127.56,2.10399857]
[1769151635368,0.05473947,127.6,127.57,2.10398995]
[1769151635569,0.05473947,127.6,127.56,8.62e-06]
[1769151636467,0.05473947,127.6,127.57,2.10398995]
[1769151636767,0.05473947,127.6,127.57,8.52558571]
[1769151640571,0.05473947,127.6,127.57,6.42159576]
[1769151641267,0.05473947,127.6,127.57,6.47285539]
[1769151642967,6.25388649,127.63,127.57,8.57168268]
[1769151643675,6.25388649,127.63,127.58,6.42159576]
[1769151651582,13.31508649,127.63,127.58,6.42159576]
[1769151653479,7.0619,127.62,127.57,0.05125963]
[1769151655375,7.0619,127.62,127.57,6.47285539]
[1769151656980,7.0619,127.62,127.57,8.57168268]
[1769151657482,6.25388649,127.63,127.57,8.57168268]
[1769151658478,6.25388649,127.63,127.57,6.47285539]
[1769151661686,6.25388649,127.63,127.58,6.42159576]
[1769151661884,9.15952729,127.64,127.58,6.42159576]
[1769151662288,17.49028535,127.64,127.58,6.42159576]
[1769151662688,17.49028535,127.64,127.6,0.05551029]
[1769151663387,0.04974172,127.63,127.6,0.05551029]
[1769151664884,8.33075806,127.59,127.51,8.17015242]
[1769151665081,8.33075806,127.59,127.49,8.46514786]
[1769151665082,8.37442083,127.55,127.49,8.46514786]
[1769151665385,2.09882729,127.56,127.49,8.46514786]
[1769151666191,0.05657968,127.54,127.49,8.46514786]
[1769151688299,0.05657968,127.54,127.47,8.46514786]
[1769151688300,8.37442083,127.53,127.47,8.46514786]
[1769151688502,2.09882729,127.52,127.47,8.46514786]
[1769151688708,109.8953,127.57,127.49,10.56397515]
[1769151688709,8.37442083,127.57,127.49,10.56397515]
[1769151688899,2.09882729,127.56,127.49,10.56397515]
[1769151689404,2.09882729,127.56,127.52,0.05214589]
[1769151689901,2.09882729,127.55,127.52,0.05214589]
[1769151690998,10.47324812,127.56,127.52,0.05214589]
[1769151692200,8.37442083,127.56,127.52,0.05214589]
[1769151698297,8.91041027,127.58,127.52,11.35028719]
[1769151698801,18.07243756,127.6,127.52,11.35028719]
[1769151699007,15.97361027,127.6,127.54,9.19931401]
[1769151699211,8.91041027,127.6,127.54,11.2981413]
[1769151699612,8.91041027,127.6,127.56,0.05006854]
[1769151720224,11.01036744,127.6,127.56,0.05006854]
[1769151721228,8.96256631,127.59,127.54,9.19931401]
[1769151728340,8.96256631,127.59,127.55,2.09995717]
[1769151728636,8.96256631,127.59,127.54,9.19931401]
[1769151728839,8.96256631,127.59,127.54,11.29927118]
[1769151729334,0.05215604,127.59,127.54,11.29927118]
[1769151729530,0.05215604,127.59,127.56,9.11381997]
[1769151731834,9.19640316,127.59,127.53,9.11381997]
[1769151732034,9.19640316,127.59,127.53,11.21377714]
[1769151732432,9.19640316,127.59,127.53,9.11381997]
[1769151734939,9.14424712,127.57,127.5,11.21377714]
[1769151735540,9.14424712,127.57,127.52,9.11381997]
[1769151735941,9.14424712,127.57,127.52,9.16341153]
[1769151744343,9.14424712,127.6,127.53,11.21377714]
[1769151744549,9.14424712,127.6,127.54,11.21377714]
[1769151744949,9.14424712,127.6,127.56,0.05242201]
[1769151748947,9.14424712,127.62,127.56,9.16624198]
[1769151749249,15.37209836,127.61,127.56,9.16624198]
[1769151749452,9.14424712,127.61,127.56,9.16624198]
[1769151749952,9.14424712,127.63,127.56,11.26619915]
[1769151750248,9.14424712,127.62,127.56,11.26619915]
[1769151750641,9.14424712,127.62,127.56,11.21377714]
[1769151750851,9.14424712,127.62,127.57,11.21377714]
[1769151751154,9.14424712,127.62,127.58,0.05010062]
[1769151760454,9.14424712,127.62,127.58,2.15005779]
[1769151760649,9.7066167,127.65,127.6,11.38007594]
[1769151761348,9.7066167,127.65,127.61,0.05386354]
[1769151761747,9.7066167,127.65,127.61,2.15382071]
[1769151762458,9.7066167,127.65,127.61,0.05386354]
[1769151781567,9.7066167,127.63,127.58,16.34381877]
[1769151782564,9.7066167,127.63,127.58,18.44163319]
[1769151783767,9.7066167,127.63,127.59,2.09781442]
[1769151785866,9.7066167,127.63,127.52,109.9275]
[1769151786061,12.29199952,127.61,127.52,9.76025533]
[1769151786364,12.29199952,127.61,127.53,2.09781442]
[1769151786559,0.04946585,127.58,127.53,2.09781442]
[1769151786966,0.04946585,127.58,127.53,11.85806975]
[1769151789271,10.24365095,127.58,127.51,9.76025533]
[1769151789470,10.24365095,127.58,127.52,2.09781442]
[1769151789773,10.1941851,127.58,127.52,11.85806975]
[1769151789967,0.05590884,127.56,127.52,11.85806975]
[1769151792766,0.05590884,127.56,127.52,9.76025533]
[1769151792967,10.25009394,127.56,127.51,2.09781442]
[1769151793368,10.25009394,127.56,127.5,11.85806975]
[1769151794462,10.25009394,127.56,127.5,18.92616975]
[1769151794665,10.25009394,127.56,127.51,11.85806975]
[1769151794863,10.25009394,127.56,127.47,109.9703]
[1769151795077,10.25009394,127.56,127.49,2.09781442]
[1769151795270,12.29199952,127.56,127.49,2.09781442]
[1769151795471,10.1941851,127.56,127.49,11.85806975]
[1769151795679,0.05322637,127.54,127.49,11.85806975]
[1769151796672,10.24741147,127.54,127.49,9.76025533]
[1769151797276,10.24741147,127.54,127.49,11.85806975]
[1769151800974,10.24741147,127.54,127.5,2.09781442]
[1769151801880,10.24741147,127.54,127.49,11.85806975]
[1769151802282,0.05322637,127.54,127.5,11.85806975]
[1769151805884,10.1941851,127.56,127.51,11.85806975]
[1769151806275,10.1941851,127.56,127.51,11.90772445]
[1769151810788,10.1941851,127.56,127.52,2.09781442]
[1769151811288,10.1941851,127.56,127.51,11.90772445]
[1769151819693,7.0631,127.6,127.51,11.90772445]
[1769151819892,10.69525116,127.59,127.54,2.09781442]
[1769151820092,10.69525116,127.59,127.55,2.09781442]
[1769151820297,10.69525116,127.62,127.55,2.09781442]
[1769151820498,10.69525116,127.62,127.55,2.1513114]
[1769151820796,10.69525116,127.62,127.57,2.09781442]
[1769151821496,10.69525116,127.62,127.58,0.05629302]
[1769151821689,10.69525116,127.62,127.58,2.15410744]
[1769151822994,10.69525116,127.62,127.53,10.12863292]
[1769151823193,10.69525116,127.58,127.52,2.09781442]
[1769151823398,10.69525116,127.58,127.51,12.22644734]
[1769151824100,12.79306558,127.58,127.51,10.12863292]
[1769151824401,109.8427,127.63,127.51,12.22644734]
[1769151824402,0.05138265,127.56,127.51,12.22644734]
[1769151824801,10.74663381,127.56,127.51,12.22644734]
[1769151825104,10.74663381,127.56,127.51,19.29394734]
[1769151826900,10.74663381,127.56,127.51,19.29708217]
[1769151829696,10.74663381,127.56,127.49,17.19713292]
[1769151829902,10.74663381,127.56,127.49,19.29808217]
[1769151830207,10.74663381,127.56,127.5,2.10094925]
[1769151839017,10.74663381,127.56,127.49,17.19713292]
[1769151839018,12.84758306,127.56,127.49,10.12863292]
[1769151840217,12.84758306,127.56,127.48,2.10094925]
[1769151840619,12.79620041,127.56,127.48,2.10094925]
[1769151840919,0.05897954,127.53,127.48,19.29878217]
[1769151841121,0.05897954,127.53,127.49,2.10094925]
[1769151843420,10.79896432,127.53,127.48,12.22958217]
[1769151845727,10.79896432,127.53,127.49,2.10094925]
[1769151846920,10.79896432,127.53,127.47,2.10094925]
[1769151849534,10.79896432,127.53,127.48,2.10094925]
[1769151850926,10.79896432,127.53,127.5,2.10094925]
[1769151850927,0.05897954,127.53,127.5,2.10094925]
[1769151852235,0.05897954,127.53,127.49,2.10094925]
[1769151854840,10.2392588,127.53,127.49,2.10094925]
[1769151860041,10.2392588,127.53,127.47,2.10094925]
[1769151863244,10.2392588,127.53,127.49,2.10094925]
[1769151869258,10.2392588,127.53,127.47,10.37071408]
[1769151869450,10.2392588,127.53,127.47,12.47166333]
[1769151872564,10.2392588,127.53,127.49,2.10094925]
[1769151875057,10.2392588,127.53,127.48,10.21660844]
[1769151875257,10.2392588,127.53,127.48,12.31755769]
[1769151875954,10.2392588,127.53,127.48,2.10094925]
[1769151876260,10.2392588,127.53,127.47,7.0698]
[1769151877461,10.2392588,127.53,127.47,17.28640844]
[1769151879064,10.2392588,127.53,127.48,12.31755769]
[1769151879462,10.23344955,127.57,127.52,12.31755769]
[1769151879664,10.23344955,127.57,127.5,10.21660844]
[1769151879960,10.23344955,127.57,127.51,2.10094925]
[1769151880661,12.3343988,127.57,127.5,10.21660844]
[1769151880859,12.3343988,127.57,127.53,0.0545082]
[1769151883159,10.23344955,127.57,127.53,0.0545082]
[1769151889463,10.23344955,127.57,127.53,2.1555455]
[1769151889963,9.1629373,127.62,127.55,2.1010373]
[1769151890160,12.33424372,127.61,127.57,2.1010373]
[1769151890457,9.26342928,127.65,127.57,2.1010373]
[1769151890458,2.1010373,127.65,127.57,2.1010373]
[1769151890673,2.1010373,127.65,127.55,10.21660844]
[1769151890674,6.15292884,127.64,127.58,2.1010373]
[1769151890964,6.15292884,127.64,127.59,2.1010373]
[1769151891158,32.90753579,127.68,127.61,2.1010373]
[1769151891348,2.1010373,127.68,127.61,2.1010373]
[1769151891554,8.27298488,127.7,127.62,2.1010373]
[1769151891757,6.1457042,127.69,127.62,2.1010373]
[1769151892055,10.23344955,127.67,127.62,2.1010373]
[1769151892858,10.23344955,127.67,127.63,0.05850015]
[1769151894266,10.23344955,127.67,127.63,2.15953745]
[1769151895558,0.05186605,127.66,127.63,2.15953745]
[1769151900461,3.2042932,127.69,127.63,10.27510859]
[1769151900669,272.6515076,127.71,127.66,2.1010373]
[1769151900862,269.4472144,127.71,127.65,10.21660844]
[1769151901063,164.77094492,127.71,127.69,2.1010373]
[1769151901367,147.55288991,127.71,127.69,2.1010373]
[1769151901565,1.99646658,127.75,127.69,2.1010373]
[1769151901871,1.99646658,127.75,127.69,2.16127601]
[1769151903664,111.73516658,127.75,127.65,5.89081931]
[1769151903966,109.7319,127.76,127.64,2.1010373]
[1769151903967,2.1010373,127.72,127.64,2.1010373]
[1769151904869,9.1574373,127.72,127.64,2.1010373]
[1769151905070,2.1010373,127.7,127.63,5.89081931]
[1769151907872,2.1010373,127.7,127.65,0.0554901]
[1769151912878,7.0575,127.7,127.65,0.0554901]
[1769151913078,2.1010373,127.69,127.65,0.0554901]
[1769151914383,0.05709998,127.68,127.65,0.0554901]
[1769151918672,2.1010373,127.73,127.65,5.5718813]
[1769151919073,2.1010373,127.73,127.65,5.5163912]
[1769151919381,7.0557,127.72,127.65,5.5163912]
[1769151920283,9.1554373,127.74,127.67,5.56249488]
[1769151920981,292.84671443,127.76,127.69,5.51275647]
[1769151921483,7.054,127.75,127.66,5.51275647]
[1769151921787,2.1010373,127.74,127.66,5.51275647]
[1769151922279,9.1556373,127.74,127.66,5.51275647]
[1769151923086,7.0551,127.73,127.69,0.05415041]
[1769151923882,2.1010373,127.72,127.64,5.53983167]
[1769151924184,2.15054202,127.72,127.64,5.53983167]
[1769151924572,2.1010373,127.72,127.64,5.53983167]
[1769151924974,7.0564,127.71,127.64,5.53983167]
[1769151925172,0.05520456,127.69,127.64,5.53983167]
[1769151926486,0.05520456,127.69,127.65,7.64086897]
[1769151926982,7.0564,127.71,127.65,7.64086897]
[1769151927184,0.05162386,127.68,127.65,7.64086897]
[1769151927485,7.0564,127.71,127.67,0.05301028]
[1769151928786,109.6988,127.79,127.68,7.64086897]
[1769151929083,1.4743413,127.72,127.67,0.05301028]
[1769151929283,1.4743413,127.72,127.64,2.1010373]
[1769151929490,2.1010373,127.71,127.64,2.1010373]
[1769151929691,0.05383496,127.69,127.64,2.1010373]
[1769151930988,0.05383496,127.69,127.64,5.33380242]
[1769151932396,1.4743413,127.72,127.66,2.1010373]
[1769151932603,1.4743413,127.72,127.66,5.55151847]
[1769151935602,1.4743413,127.72,127.68,0.04958921]
[1769151938109,1.4743413,127.72,127.66,3.45048117]
[1769151939005,2.1010373,127.72,127.66,3.45048117]
[1769151939406,2.1010373,127.72,127.6,75.43041198]
[1769151939608,0.0589565,127.7,127.65,2.1010373]
[1769151939815,3.43166146,127.71,127.65,2.1010373]
[1769151940111,0.04969884,127.69,127.65,2.1010373]
[1769151941515,0.04969884,127.69,127.65,5.55151847]
[1769151942704,0.04969884,127.69,127.66,3.45048117]
[1769151942904,9.1566373,127.72,127.66,3.45048117]
[1769151943110,287.12403859,127.76,127.7,3.45048117]
[1769151943312,287.12403859,127.76,127.69,2.1010373]
[1769151943313,3.43166146,127.75,127.69,2.1010373]
[1769151944213,10.48556146,127.75,127.69,2.1010373]
[1769151944815,10.48556146,127.75,127.71,0.05384873]
[1769151945210,3.43166146,127.75,127.71,0.05384873]
[1769151946207,0.05129803,127.74,127.71,0.05384873]
[1769151952417,0.05129803,127.74,127.71,3.5043299]
[1769151961321,0.05129803,127.74,127.71,5.59928905]
[1769151961520,0.05129803,127.74,127.72,3.45048117]
[1769151962020,0.05129803,127.74,127.71,0.05384873]
[1769151963221,0.05129803,127.74,127.71,3.28614217]
[1769151964027,0.05129803,127.74,127.71,0.05384873]
[1769151967723,0.05129803,127.74,127.71,3.52679105]
[1769151970032,3.31029552,127.71,127.64,3.47294232]
[1769151970219,2.09495915,127.7,127.64,3.47294232]
[1769151971223,0.05147012,127.68,127.64,3.47294232]
[1769151971427,5.40525467,127.73,127.66,3.47294232]
[1769151971729,5.40525467,127.73,127.67,3.47294232]
[1769151972323,5.40525467,127.73,127.65,2.09495915]
[1769151972324,3.31029552,127.72,127.65,2.09495915]
[1769151972525,2.09495915,127.71,127.65,3.47294232]
[1769151972931,2.09495915,127.71,127.67,0.0535025]
[1769151974431,5.40525467,127.72,127.67,0.0535025]
[1769151975227,0.05628445,127.71,127.67,0.0535025]